bitfinex-derivatives/quotes_BTCF0:USTF0_20251208
["timestamp","ask_amount","ask_price","bid_price","bid_amount"]
[1765153819476,0.05856,90276.0,90275.0,0.02843613]
[1765153819866,0.05856,90276.0,90275.0,0.05661613]
[1765153828378,0.05856,90284.0,90283.0,0.0675253]
[1765153828584,0.0696352,90284.0,90283.0,0.0675253]
[1765153829479,0.0696362,90276.0,90275.0,0.06769233]
[1765153829876,0.0873462,90276.0,90275.0,0.00016613]
[1765153830880,0.0973462,90276.0,90275.0,0.00016613]
[1765153831388,0.0983462,90276.0,90275.0,0.00016613]
[1765153832172,0.0983462,90276.0,90275.0,0.02843613]
[1765153833983,0.0983462,90276.0,90275.0,0.05661613]
[1765153835787,0.0983462,90276.0,90275.0,0.00016613]
[1765153835980,0.0983462,90276.0,90275.0,0.02843613]
[1765153836180,0.0983462,90276.0,90275.0,0.00016613]
[1765153836388,0.0983462,90276.0,90275.0,0.02843613]
[1765153837184,0.0806362,90276.0,90275.0,0.05661613]
[1765153838279,0.0983462,90276.0,90275.0,0.00016613]
[1765153838479,0.0983462,90276.0,90275.0,0.02843613]
[1765153839186,0.0983462,90276.0,90275.0,0.05661613]
[1765153841293,0.011,90276.0,90275.0,0.05661613]
[1765153841980,0.06882,90276.0,90275.0,0.05661613]
[1765153842182,0.08538,90276.0,90275.0,0.05547613]
[1765153842584,0.07538,90276.0,90275.0,0.00216613]
[1765153842779,0.07438,90276.0,90275.0,0.00216613]
[1765153842991,0.07438,90276.0,90275.0,0.06091613]
[1765153843194,0.06782,90276.0,90275.0,0.05891613]
[1765153844394,0.06882,90276.0,90275.0,0.05591613]
[1765153848386,0.06882,90276.0,90275.0,0.02887613]
[1765153848609,0.06882,90276.0,90275.0,0.00016613]
[1765153849392,0.06882,90276.0,90275.0,0.05591613]
[1765153850194,0.06882,90276.0,90275.0,0.08483243]
[1765153851492,0.0798962,90276.0,90275.0,0.08483243]
[1765153852480,0.0788962,90276.0,90275.0,0.08783243]
[1765153853096,0.06782,90276.0,90275.0,0.08783243]
[1765153853287,0.06882,90276.0,90275.0,0.08483243]
[1765153854292,0.05882,90276.0,90275.0,0.08683243]
[1765153854995,0.05882,90276.0,90275.0,0.08983243]
[1765153854996,0.05782,90276.0,90275.0,0.08983243]
[1765153855685,0.05782,90276.0,90275.0,0.08683243]
[1765153855893,0.05782,90276.0,90275.0,0.08983243]
[1765153859505,0.0557,90283.0,90280.0,0.01729]
[1765153859798,0.05586613,90293.0,90292.0,0.0668242]
[1765153860586,0.02795613,90293.0,90292.0,0.0668242]
[1765153861488,0.00016613,90293.0,90292.0,0.0668242]
[1765153861694,0.01716613,90293.0,90292.0,0.0668242]
[1765153861894,0.07611613,90293.0,90292.0,0.05875]
[1765153862096,0.05911613,90293.0,90292.0,0.005]
[1765153862604,0.05911613,90293.0,90292.0,0.03308]
[1765153863003,0.05911613,90293.0,90292.0,0.05766]
[1765153863203,0.06011613,90293.0,90292.0,0.06566]
[1765153863606,0.06011613,90293.0,90292.0,0.06366]
[1765153863794,0.06011613,90293.0,90292.0,0.07966]
[1765153864300,0.07411613,90293.0,90292.0,0.008]
[1765153864504,0.07411613,90293.0,90270.0,0.01789]
[1765153864505,0.05895,90280.0,90279.0,0.0667357]
[1765153865402,0.02914,90280.0,90279.0,0.0667357]
[1765153865606,0.05895,90287.0,90286.0,0.066735]
[1765153867510,0.07095,90287.0,90286.0,0.066735]
[1765153867798,0.07095,90287.0,90286.0,0.05566]
[1765153868002,0.05895,90280.0,90279.0,0.06366]
[1765153868202,0.01648,90282.0,90275.0,0.05582613]
[1765153868203,0.05895,90276.0,90275.0,0.05582613]
[1765153869203,0.06816,90276.0,90275.0,0.02824613]
[1765153869404,0.06816,90276.0,90275.0,0.05582613]
[1765153870504,0.05895,90276.0,90275.0,0.06690243]
[1765153870707,0.05995,90276.0,90275.0,0.06890243]
[1765153871412,0.06995,90276.0,90275.0,0.06690243]
[1765153871600,0.06895,90276.0,90275.0,0.06690243]
[1765153871795,0.05895,90276.0,90275.0,0.05882613]
[1765153872105,0.05895,90276.0,90275.0,0.06082613]
[1765153873407,0.05895,90276.0,90275.0,0.05882613]
[1765153873610,0.06895,90276.0,90275.0,0.05582613]
[1765153873800,0.06995,90276.0,90275.0,0.05582613]
[1765153874515,0.0810262,90276.0,90275.0,0.05582613]
[1765153880306,0.06995,90276.0,90275.0,0.05582613]
[1765153880914,0.0810262,90276.0,90275.0,0.05582613]
[1765153883112,0.06995,90276.0,90275.0,0.07240613]
[1765153884307,0.06995,90276.0,90275.0,0.05582613]
[1765153887519,0.06995,90276.0,90275.0,0.07240613]
[1765153889112,0.02972,90284.0,90283.0,0.05806]
[1765153889318,0.05889,90288.0,90287.0,0.05806]
[1765153889511,0.00016613,90293.0,90285.0,0.01658]
[1765153889512,0.05905613,90293.0,90292.0,0.0691342]
[1765153889921,0.00016613,90293.0,90292.0,0.0691342]
[1765153890811,0.02988613,90293.0,90292.0,0.0691342]
[1765153891508,0.0407921,90310.0,90309.0,0.05806]
[1765153891708,0.0699621,90310.0,90309.0,0.05806]
[1765153893213,0.07089,90310.0,90309.0,0.05806]
[1765153893412,0.07289,90310.0,90309.0,0.05806]
[1765153895326,0.014,90310.0,90309.0,0.05806]
[1765153895509,0.014,90310.0,90309.0,0.44806]
[1765153895818,0.05916678,90326.0,90325.0,0.05806]
[1765153896206,0.00027678,90326.0,90325.0,0.05806]
[1765153897115,0.05916678,90326.0,90325.0,0.05806]
[1765153897913,0.06316678,90326.0,90325.0,0.05806]
[1765153898109,0.01827678,90326.0,90325.0,0.05806]
[1765153898506,0.01827678,90326.0,90325.0,0.42806]
[1765153898711,0.01827678,90326.0,90325.0,0.13806]
[1765153900118,0.01827678,90326.0,90325.0,0.46806]
[1765153901007,0.0110682,90342.0,90325.0,0.46806]
[1765153901008,0.0699582,90342.0,90341.0,0.05806]
[1765153901209,0.0699571,90351.0,90350.0,0.05806]
[1765153901416,0.05889,90351.0,90350.0,0.05806]
[1765153902123,0.0685558,90361.0,90360.0,0.05933]
[1765153902331,0.05749,90352.0,90351.0,0.05949601]
[1765153902822,0.05749,90352.0,90351.0,0.00016601]
[1765153903022,0.05749,90352.0,90351.0,0.05949601]
[1765153904823,0.06049,90352.0,90351.0,0.05949601]
[1765153905221,0.06349,90352.0,90351.0,0.05949601]
[1765153906511,0.03437,90352.0,90351.0,0.05949601]
[1765153907415,0.06349,90352.0,90351.0,0.05949601]
[1765153908216,0.06349,90352.0,90351.0,0.00016601]
[1765153918430,0.05712,90333.0,90332.0,0.05765]
[1765153918637,0.011069,90335.0,90324.0,0.01666]
[1765153918638,0.05712,90325.0,90324.0,0.05765]
[1765153918836,0.0681902,90325.0,90324.0,0.05765]
[1765153920230,0.05712,90320.0,90319.0,0.02832]
[1765153920630,0.08041946,90320.0,90319.0,0.02832]
[1765153921042,0.05712,90316.0,90315.0,0.05781601]
[1765153921241,0.05712,90316.0,90315.0,0.00016601]
[1765153921630,0.08043178,90316.0,90315.0,0.00016601]
[1765153922040,0.08043178,90316.0,90315.0,0.05781601]
[1765153922231,0.05191178,90316.0,90315.0,0.05781601]
[1765153922434,0.002,90320.0,90319.0,0.05765]
[1765153922842,0.002,90320.0,90319.0,0.40765]
[1765153923138,0.06835472,90334.0,90333.0,0.05765]
[1765153923336,0.02347877,90334.0,90333.0,0.05765]
[1765153923655,0.00016562,90334.0,90333.0,0.05765]
[1765153924326,0.00016562,90334.0,90333.0,0.06866409]
[1765153924537,0.0681872,90350.0,90349.0,0.05765]
[1765153924743,0.0681872,90350.0,90349.0,0.07549]
[1765153925633,0.0681872,90350.0,90349.0,0.05765]
[1765153925838,0.05712,90343.0,90342.0,0.05765]
[1765153926947,0.05912,90343.0,90342.0,0.05765]
[1765153927451,0.002,90343.0,90342.0,0.40765]
[1765153927637,0.002,90343.0,90342.0,0.21465]
[1765153928242,0.05712,90360.0,90359.0,0.05765]
[1765153929447,0.06212,90360.0,90359.0,0.05765]
[1765153930735,0.005,90360.0,90359.0,0.05765]
[1765153931156,0.09906516,90375.0,90374.0,0.05765]
[1765153931354,0.0681841,90375.0,90374.0,0.05765]
[1765153931938,0.05712,90375.0,90374.0,0.05765]
[1765153932247,0.0681841,90375.0,90374.0,0.05765]
[1765153932643,0.0110636,90379.0,90377.0,0.01676]
[1765153932841,0.0395236,90379.0,90378.0,0.05455]
[1765153933047,0.0686336,90379.0,90378.0,0.05455]
[1765153933244,0.05757,90379.0,90378.0,0.05455]
[1765153933452,0.0686331,90384.0,90383.0,0.05455]
[1765153933638,0.05757,90384.0,90383.0,0.05455]
[1765153933848,0.12821081,90389.0,90388.0,0.05455]
[1765153934143,0.0686325,90389.0,90388.0,0.05455]
[1765153934543,0.05757,90389.0,90388.0,0.05455]
[1765153934746,0.14787402,90400.0,90398.0,0.05455]
[1765153934747,0.11714831,90399.0,90398.0,0.05455]
[1765153934958,0.05757,90399.0,90398.0,0.05455]
[1765153936154,0.05957,90399.0,90398.0,0.05455]
[1765153936850,0.002,90399.0,90398.0,0.05455]
[1765153937758,0.03046,90399.0,90398.0,0.05455]
[1765153937948,0.002,90399.0,90398.0,0.05455]
[1765153938149,0.002,90399.0,90398.0,0.45455]
[1765153938452,0.00027653,90406.0,90405.0,0.0656104]
[1765153938749,0.05784653,90406.0,90405.0,0.0656104]
[1765153939251,0.02873653,90406.0,90405.0,0.0656104]
[1765153939550,0.00027653,90406.0,90405.0,0.0656104]
[1765153940553,0.00327653,90406.0,90405.0,0.4366104]
[1765153941154,0.00027653,90406.0,90405.0,0.4566104]
[1765153941457,0.00127653,90406.0,90405.0,0.4566104]
[1765153942048,0.00127653,90406.0,90405.0,0.4606104]
[1765153942464,0.00127653,90406.0,90405.0,0.0706104]
[1765153942662,0.00127653,90406.0,90405.0,0.05955]
[1765153942846,0.05884653,90406.0,90405.0,0.05955]
[1765153943651,0.02973653,90406.0,90405.0,0.05955]
[1765153943847,0.05884653,90406.0,90405.0,0.05955]
[1765153948858,0.05884653,90406.0,90405.0,0.07631]
[1765153949366,0.05884653,90406.0,90405.0,0.05955]
[1765153951466,0.05884653,90406.0,90405.0,0.07631]
[1765153951866,0.05884653,90406.0,90405.0,0.05955]
[1765153954271,0.00127653,90406.0,90405.0,0.07631]
[1765153954468,0.02973653,90406.0,90405.0,0.07631]
[1765153954667,0.00127653,90406.0,90405.0,0.07631]
[1765153954862,0.05884653,90406.0,90405.0,0.07631]
[1765153955959,0.05884653,90406.0,90405.0,0.05955]
[1765153956364,0.05884653,90406.0,90405.0,0.07631]
[1765153957463,0.00127653,90406.0,90405.0,0.07631]
[1765153958595,0.05884653,90406.0,90405.0,0.07631]
[1765153958868,0.05884653,90406.0,90405.0,0.05955]
[1765153959872,0.00127653,90406.0,90405.0,0.0873704]
[1765153962074,0.08018009,90406.0,90405.0,0.0873704]
[1765153962374,0.10864009,90406.0,90405.0,0.0873704]
[1765153962571,0.08018009,90406.0,90405.0,0.0873704]
[1765153963072,0.00127653,90406.0,90405.0,0.0873704]
[1765153963264,0.02962653,90406.0,90405.0,0.0873704]
[1765153964265,0.00127653,90406.0,90405.0,0.0873704]
[1765153964465,0.05948653,90406.0,90405.0,0.0873704]
[1765153965463,0.02962653,90406.0,90405.0,0.0873704]
[1765153965869,0.05948653,90406.0,90405.0,0.0873704]
[1765153966270,0.05948653,90406.0,90405.0,0.03214]
[1765153966861,0.05948653,90406.0,90405.0,0.0596]
[1765153969274,0.00127653,90406.0,90405.0,0.0596]
[1765153969467,0.04068683,90406.0,90405.0,0.0596]
[1765153969667,0.07054683,90406.0,90405.0,0.0596]
[1765153970376,0.07054683,90406.0,90405.0,0.0706604]
[1765153971373,0.07054683,90406.0,90405.0,0.0596]
[1765153973768,0.07054683,90406.0,90405.0,0.0706604]
[1765153973973,0.00127653,90406.0,90405.0,0.0706604]
[1765153974282,0.00127653,90406.0,90405.0,0.4806604]
[1765153974476,0.00127653,90406.0,90405.0,0.49165872]
[1765153974675,0.00127653,90406.0,90405.0,0.2506604]
[1765153976080,0.00127653,90406.0,90405.0,0.0706604]
[1765153976382,0.00127653,90406.0,90405.0,0.1606604]
[1765153976875,0.05972965,90412.0,90411.0,0.0575]
[1765153977084,0.05886,90412.0,90411.0,0.1475]
[1765153977378,0.11855781,90412.0,90411.0,0.1475]
[1765153977779,0.11855781,90412.0,90411.0,0.0575]
[1765153978076,0.12055781,90412.0,90411.0,0.0585]
[1765153978474,0.0313,90412.0,90411.0,0.0585]
[1765153979282,0.002,90412.0,90411.0,0.0585]
[1765153980577,0.06086,90412.0,90411.0,0.0585]
[1765153980779,0.06086,90412.0,90411.0,0.001]
[1765153983774,0.06086,90412.0,90411.0,0.0585]
[1765153984982,0.07799,90412.0,90411.0,0.001]
[1765153986384,0.07799,90412.0,90411.0,0.0585]
[1765153986789,0.06086,90412.0,90411.0,0.0585]
[1765153987583,0.07799,90412.0,90411.0,0.001]
[1765153988089,0.07799,90412.0,90411.0,0.03097]
[1765153988681,0.07799,90412.0,90411.0,0.0585]
[1765153989491,0.07799,90412.0,90411.0,0.001]
[1765153990792,0.0110606,90403.0,90402.0,0.00016592]
[1765153990991,0.0110606,90403.0,90384.0,0.0575]
[1765153990992,0.0403628,90385.0,90384.0,0.0575]
[1765153991207,0.0699228,90385.0,90384.0,0.0575]
[1765153991399,0.0699237,90378.0,90377.0,0.0575]
[1765153991894,0.0293,90378.0,90377.0,0.07453]
[1765153992093,0.11849798,90386.0,90385.0,0.0582]
[1765153992396,0.05879,90386.0,90385.0,0.0582]
[1765153993891,0.05879,90386.0,90385.0,0.0592]
[1765153994303,0.00016561,90387.0,90386.0,0.0692627]
[1765153994592,0.05895561,90387.0,90386.0,0.0692627]
[1765153994992,0.00016561,90387.0,90386.0,0.0692627]
[1765153995500,0.00016561,90387.0,90386.0,0.4532627]
[1765153995692,0.02904,90400.0,90399.0,0.0692611]
[1765153996290,0.07076838,90405.0,90404.0,0.0582]
[1765153996291,0.12955838,90405.0,90404.0,0.0582]
[1765153996591,0.12955838,90405.0,90403.0,0.0110606]
[1765153996592,0.05970798,90414.0,90412.0,0.07523]
[1765153996790,0.05879,90414.0,90413.0,0.0582]
[1765153997801,0.05879,90406.0,90405.0,0.0692604]
[1765153998802,0.0698494,90413.0,90412.0,0.0582]
[1765153998994,0.05879,90413.0,90412.0,0.0582]
[1765153999387,0.05879,90406.0,90405.0,0.0328]
[1765153999590,0.05879,90406.0,90405.0,0.0632]
[1765154000096,0.05879,90406.0,90405.0,0.0338]
[1765154000297,0.05879,90406.0,90405.0,0.004]
[1765154000495,0.05879,90406.0,90405.0,0.0582]
[1765154001201,0.05879,90406.0,90405.0,0.0622]
[1765154001601,0.05879,90406.0,90405.0,0.0602]
[1765154001791,0.05879,90406.0,90405.0,0.0612]
[1765154002497,0.05879,90406.0,90405.0,0.0602]
[1765154002700,0.05879,90406.0,90405.0,0.002]
[1765154003092,0.05879,90406.0,90404.0,0.00016592]
[1765154003297,0.05879,90405.0,90404.0,0.02896592]
[1765154003504,0.05879,90405.0,90404.0,0.05836592]
[1765154004501,0.05879,90405.0,90404.0,0.06036592]
[1765154006305,0.02904,90405.0,90404.0,0.06036592]
[1765154007095,0.05879,90405.0,90404.0,0.06036592]
[1765154007296,0.02904,90405.0,90404.0,0.06036592]
[1765154007506,0.14946014,90413.0,90412.0,0.0582]
[1765154008502,0.0698495,90413.0,90412.0,0.0582]
[1765154009706,0.0698495,90413.0,90412.0,0.0592]
[1765154010706,0.14931108,90413.0,90412.0,0.07623]
[1765154010897,0.14931108,90413.0,90412.0,0.0592]
[1765154011298,0.02904,90413.0,90412.0,0.07623]
[1765154011501,0.01794,90432.0,90421.0,0.0582]
[1765154011502,0.11838603,90422.0,90421.0,0.0582]
[1765154011807,0.05879,90422.0,90421.0,0.0582]
[1765154012701,0.06079,90422.0,90421.0,0.0582]
[1765154013098,0.002,90422.0,90421.0,0.4282]
[1765154013807,0.07065263,90437.0,90436.0,0.0582]
[1765154013808,0.05879,90437.0,90436.0,0.0582]
[1765154014008,0.11838603,90440.0,90439.0,0.0582]
[1765154014309,0.05879,90440.0,90439.0,0.0582]
[1765154015699,0.003,90440.0,90439.0,0.0582]
[1765154015903,0.05959603,90449.0,90448.0,0.0692551]
[1765154016108,0.05959603,90451.0,90450.0,0.0692549]
[1765154016402,0.011054,90458.0,90457.0,0.0582]
[1765154016403,0.12944003,90458.0,90457.0,0.0582]
[1765154017122,0.12944003,90458.0,90457.0,0.0288]
[1765154017308,0.069844,90458.0,90457.0,0.0582]
[1765154017613,0.069844,90458.0,90440.0,0.01703]
[1765154017614,0.05879,90441.0,90440.0,0.0582]
[1765154018001,0.05879,90441.0,90440.0,0.0288]
[1765154018609,0.0110559,90442.0,90441.0,0.0582]
[1765154018825,0.0698459,90442.0,90441.0,0.0582]
[1765154020014,0.05879,90442.0,90441.0,0.0582]
[1765154020209,0.0110554,90446.0,90441.0,0.0592]
[1765154020516,0.0400954,90446.0,90445.0,0.0582]
[1765154020707,0.0698454,90446.0,90445.0,0.0582]
[1765154022408,0.0698454,90446.0,90445.0,0.0288]
[1765154022713,0.0698454,90446.0,90445.0,0.05787]
[1765154028021,0.0400954,90446.0,90445.0,0.05787]
[1765154028321,0.0697854,90446.0,90445.0,0.05787]
[1765154029923,0.07488,90440.0,90439.0,0.00016582]
[1765154030114,0.07488,90440.0,90439.0,0.02763582]
[1765154031020,0.05736,90440.0,90439.0,0.05770582]
[1765154031915,0.05736,90440.0,90439.0,0.05970582]
[1765154032818,0.07488,90440.0,90439.0,0.00316582]
[1765154033920,0.07488,90440.0,90439.0,0.05970582]
[1765154035923,0.07488,90440.0,90439.0,0.00316582]
[1765154037325,0.0671586,90420.0,90419.0,0.05805]
[1765154037527,0.0561,90420.0,90419.0,0.07568]
[1765154037727,0.02791,90424.0,90423.0,0.05805]
[1765154037926,0.0561,90424.0,90423.0,0.05805]
[1765154039128,0.0561,90424.0,90423.0,0.06205]
[1765154039623,0.0561,90424.0,90423.0,0.05905]
[1765154039932,0.0561,90424.0,90423.0,0.06205]
[1765154042127,0.0561,90424.0,90423.0,0.06105]
[1765154042327,0.0561,90424.0,90423.0,0.06205]
[1765154042529,0.0671573,90431.0,90426.0,0.01763]
[1765154042727,0.0671573,90431.0,90430.0,0.05805]
[1765154042922,0.0561,90431.0,90430.0,0.0691073]
[1765154045027,0.0001655,90433.0,90432.0,0.05805]
[1765154045418,0.0280755,90433.0,90432.0,0.05805]
[1765154045823,0.0562655,90433.0,90432.0,0.05805]
[1765154046322,0.0562655,90433.0,90432.0,0.05905]
[1765154047527,0.0562655,90433.0,90432.0,0.06005]
[1765154047737,0.0562655,90433.0,90432.0,0.06105]
[1765154048035,0.0562655,90433.0,90432.0,0.07971]
[1765154048734,0.0562655,90433.0,90432.0,0.005]
[1765154049521,0.11589762,90433.0,90432.0,0.005]
[1765154050030,0.0562655,90433.0,90432.0,0.06305]
[1765154050230,0.11589762,90433.0,90432.0,0.03494]
[1765154050537,0.11589762,90433.0,90432.0,0.03194]
[1765154050734,0.11589762,90433.0,90432.0,0.02994]
[1765154051035,0.11589762,90433.0,90432.0,0.03094]
[1765154051242,0.11589762,90433.0,90432.0,0.001]
[1765154051531,0.0110571,90432.0,90423.0,0.07340202]
[1765154051833,0.0561,90424.0,90423.0,0.13145202]
[1765154052338,0.0561,90424.0,90423.0,0.05805]
[1765154052731,0.11572646,90424.0,90423.0,0.05805]
[1765154053933,0.11572646,90424.0,90423.0,0.05905]
[1765154054338,0.11572646,90424.0,90423.0,0.06205]
[1765154054934,0.11572646,90424.0,90423.0,0.004]
[1765154055236,0.0561,90424.0,90423.0,0.004]
[1765154056028,0.0561,90424.0,90423.0,0.05927]
[1765154056634,0.02881,90428.0,90427.0,0.0110576]
[1765154056835,0.05759,90428.0,90427.0,0.0663276]
[1765154057329,0.11721579,90428.0,90427.0,0.0663276]
[1765154057643,0.05962579,90430.0,90429.0,0.0663275]
[1765154057833,0.05962579,90432.0,90431.0,0.05527]
[1765154058034,0.05979129,90433.0,90432.0,0.0663271]
[1765154058342,0.0001655,90433.0,90432.0,0.0663271]
[1765154060133,0.0001655,90433.0,90432.0,0.0683271]
[1765154060536,0.0001655,90433.0,90432.0,0.0713271]
[1765154061539,0.02878,90452.0,90451.0,0.05527]
[1765154061745,0.05759,90452.0,90451.0,0.05527]
[1765154061941,0.05962579,90453.0,90452.0,0.0663247]
[1765154062146,0.07950299,90462.0,90452.0,0.0663247]
[1765154062147,0.08680168,90478.0,90477.0,0.05527]
[1765154062442,0.07518,90472.0,90471.0,0.0383623]
[1765154062643,0.07518,90472.0,90471.0,0.0663223]
[1765154063436,0.07518,90472.0,90471.0,0.05527]
[1765154063742,0.05759,90472.0,90471.0,0.05527]
[1765154064042,0.05859,90472.0,90471.0,0.05527]
[1765154064233,0.07618,90472.0,90471.0,0.05527]
[1765154064741,0.001,90472.0,90471.0,0.47527]
[1765154065638,0.07618,90472.0,90471.0,0.05527]
[1765154065943,0.05759,90466.0,90465.0,0.05527]
[1765154066136,0.05759,90463.0,90462.0,0.00016582]
[1765154066630,0.05759,90463.0,90462.0,0.02747582]
[1765154067027,0.05759,90463.0,90462.0,0.00016582]
[1765154067938,0.05759,90463.0,90462.0,0.05543582]
[1765154068239,0.05759,90463.0,90462.0,0.00016582]
[1765154068434,0.05759,90463.0,90462.0,0.05543582]
[1765154069840,0.05759,90463.0,90462.0,0.06648922]
[1765154070030,0.05759,90470.0,90469.0,0.05527]
[1765154070435,0.01759,90480.0,90477.0,0.05527]
[1765154070436,0.0686415,90478.0,90477.0,0.05527]
[1765154070742,0.05759,90478.0,90477.0,0.05527]
[1765154071339,0.05759,90478.0,90477.0,0.0663216]
[1765154072229,0.01759,90480.0,90469.0,0.05527]
[1765154072230,0.05759,90470.0,90469.0,0.05527]
[1765154072443,0.05759,90465.0,90464.0,0.0663231]
[1765154073142,0.02878,90465.0,90464.0,0.0663231]
[1765154073341,0.05759,90476.0,90464.0,0.37]
[1765154073538,0.26702299,90500.0,90485.0,0.02731]
[1765154073739,0.06891679,90486.0,90485.0,0.02731]
[1765154073938,0.06891679,90486.0,90479.0,0.05527]
[1765154073939,0.05759,90480.0,90479.0,0.05527]
[1765154074242,0.05759,90480.0,90475.0,0.0110518]
[1765154074243,0.05759,90476.0,90475.0,0.0663218]
[1765154074739,0.02878,90476.0,90475.0,0.0663218]
[1765154075037,0.05959,90476.0,90475.0,0.0663218]
[1765154075243,0.03078,90476.0,90475.0,0.0663218]
[1765154075946,0.002,90476.0,90475.0,0.0663218]
[1765154076247,0.002,90476.0,90475.0,0.4763218]
[1765154076651,0.07545629,90486.0,90485.0,0.0663206]
[1765154077149,0.07545629,90486.0,90485.0,0.05527]
[1765154077339,0.05786629,90486.0,90485.0,0.0663206]
[1765154077539,0.07545629,90486.0,90485.0,0.0663206]
[1765154077842,0.07545629,90486.0,90485.0,0.0673206]
[1765154078946,0.07545629,90486.0,90485.0,0.0703206]
[1765154079747,0.07545629,90486.0,90485.0,0.03131]
[1765154080447,0.07545629,90486.0,90485.0,0.05927]
[1765154081051,0.00027629,90486.0,90485.0,0.05927]
[1765154081348,0.00027629,90486.0,90485.0,0.42927]
[1765154081650,0.00027629,90486.0,90485.0,0.44004186]
[1765154081946,0.00027629,90486.0,90485.0,0.42927]
[1765154082147,0.0688588,90500.0,90499.0,0.02731]
[1765154082352,0.05634,90491.0,90490.0,0.00016582]
[1765154083039,0.01641,90496.0,90485.0,0.004]
[1765154083040,0.0673905,90486.0,90485.0,0.004]
[1765154083244,0.0673905,90486.0,90485.0,0.003]
[1765154083451,0.05634,90474.0,90473.0,0.069372]
[1765154083747,0.05634,90474.0,90473.0,0.05832]
[1765154083941,0.05634,90466.0,90465.0,0.069373]
[1765154084737,0.05634,90466.0,90465.0,0.0693731]
[1765154084938,0.07275,90472.0,90471.0,0.0693723]
[1765154085338,0.05634,90472.0,90471.0,0.0693723]
[1765154085548,0.02731,90472.0,90471.0,0.0693723]
[1765154085754,0.001,90474.0,90473.0,0.05832]
[1765154086047,0.05734,90474.0,90473.0,0.05832]
[1765154086249,0.05734,90474.0,90473.0,0.44832]
[1765154086447,0.05634,90474.0,90473.0,0.05832]
[1765154086651,0.05634,90474.0,90473.0,0.21832]
[1765154086841,0.0838012,90480.0,90479.0,0.05832]
[1765154087041,0.0838012,90480.0,90479.0,0.02972]
[1765154087339,0.0838012,90480.0,90479.0,0.05832]
[1765154088438,0.0838012,90480.0,90479.0,0.02972]
[1765154088647,0.0838012,90480.0,90479.0,0.03072]
[1765154089144,0.0838012,90480.0,90479.0,0.001]
[1765154089540,0.0838012,90480.0,90479.0,0.03072]
[1765154090050,0.0838012,90480.0,90479.0,0.05932]
[1765154090051,0.07275,90480.0,90479.0,0.05932]
[1765154090440,0.05650582,90483.0,90482.0,0.05832]
[1765154091744,0.05650582,90483.0,90482.0,0.06132]
[1765154092745,0.05650582,90483.0,90482.0,0.06232]
[1765154095057,0.02747582,90483.0,90482.0,0.47232]
[1765154095251,0.00016582,90483.0,90482.0,0.47232]
[1765154095853,0.00016582,90483.0,90482.0,0.22232]
[1765154096447,0.00016582,90483.0,90482.0,0.49232]
[1765154099150,0.05926132,90497.0,90496.0,0.0692793]
[1765154099355,0.11600132,90497.0,90496.0,0.4192793]
[1765154099556,0.05674,90497.0,90496.0,0.4192793]
[1765154100250,0.07567132,90504.0,90503.0,0.0110484]
[1765154100453,0.05926132,90506.0,90505.0,0.0692782]
[1765154100649,0.11538945,90524.0,90506.0,0.05823]
[1765154100650,0.05926132,90507.0,90506.0,0.05823]
[1765154100850,0.05926132,90511.0,90510.0,0.05823]
[1765154101042,0.11600132,90511.0,90510.0,0.05823]
[1765154101245,0.05926132,90512.0,90511.0,0.0692774]
[1765154101451,0.05,90518.0,90517.0,0.0692767]
[1765154102154,0.05674,90503.0,90502.0,0.02969573]
[1765154102356,0.05674,90503.0,90502.0,0.00016573]
[1765154102562,0.05674,90503.0,90502.0,0.02969573]
[1765154102745,0.05674,90503.0,90502.0,0.06944423]
[1765154103346,0.05950813,90506.0,90505.0,0.05823]
[1765154103645,0.00027617,90526.0,90505.0,0.05823]
[1765154103646,0.05950813,90511.0,90510.0,0.0692776]
[1765154103849,0.05950813,90514.0,90513.0,0.0110472]
[1765154104050,0.05950813,90514.0,90513.0,0.4892772]
[1765154104249,0.05950813,90516.0,90515.0,0.05823]
[1765154104542,0.05950813,90516.0,90515.0,0.47823]
[1765154104749,0.05950813,90517.0,90516.0,0.0692768]
[1765154104948,0.05,90518.0,90517.0,0.05823]
[1765154104949,0.0789,90518.0,90517.0,0.05823]
[1765154105249,0.0789,90518.0,90517.0,0.35823]
[1765154105452,0.05,90518.0,90517.0,0.05823]
[1765154105755,0.00027617,90526.0,90525.0,0.01294]
[1765154105960,0.00027617,90526.0,90525.0,0.38294]
[1765154106445,0.09862945,90561.0,90541.0,0.01294]
[1765154106446,0.05950813,90542.0,90541.0,0.01294]
[1765154106750,0.0735,90540.0,90539.0,0.01294]
[1765154107148,0.01676,90549.0,90548.0,0.01294]
[1765154107350,0.05674,90549.0,90548.0,0.20647]
[1765154107549,0.0735,90549.0,90548.0,0.01294]
[1765154108247,0.0735,90549.0,90548.0,0.22294]
[1765154108445,0.0735,90549.0,90548.0,0.01294]
[1765154108648,0.0735,90549.0,90548.0,0.22294]
[1765154108951,0.08840813,90559.0,90558.0,0.01294]
[1765154109153,0.00027604,90566.0,90548.0,0.21]
[1765154109154,0.00027604,90566.0,90565.0,0.01294]
[1765154109345,0.02917604,90566.0,90565.0,0.01294]
[1765154109546,0.05950813,90582.0,90581.0,0.02956]
[1765154109744,0.05674,90573.0,90572.0,0.13004733]
[1765154109949,0.05674,90573.0,90572.0,0.00016563]
[1765154110454,0.05674,90573.0,90572.0,0.02972563]
[1765154110653,0.05674,90573.0,90572.0,0.00016563]
[1765154112152,0.06174,90573.0,90572.0,0.00016563]
[1765154113349,0.06174,90573.0,90572.0,0.02972563]
[1765154113860,0.06174,90573.0,90572.0,0.00016563]
[1765154117459,0.005,90573.0,90572.0,0.02972563]
[1765154117654,0.06259,90573.0,90572.0,0.00016563]
[1765154118256,0.06259,90573.0,90572.0,0.02972563]
[1765154118451,0.03444,90573.0,90572.0,0.04076563]
[1765154118657,0.06259,90573.0,90572.0,0.04076563]
[1765154118858,0.03444,90573.0,90572.0,0.04076563]
[1765154119364,0.005,90573.0,90572.0,0.04076563]
[1765154119658,0.06259,90573.0,90572.0,0.01120563]
[1765154120570,0.06259,90573.0,90572.0,0.02598563]
[1765154121364,0.03444,90573.0,90572.0,0.04076563]
[1765154121555,0.005,90573.0,90572.0,0.44076563]